bitfinex-derivatives/quotes_ETHF0:USTF0_20250331
["timestamp","ask_amount","ask_price","bid_price","bid_amount"]
[1743440347048,1.08639,1841.1,1841.0,1.08642]
[1743440347243,6.19829,1841.1,1841.0,2.9341]
[1743440347849,2.55429,1841.1,1841.0,2.9341]
[1743440350548,1.08645,1841.0,1840.9,0.00043796]
[1743440350858,2.53905,1841.0,1840.9,0.00043796]
[1743440353656,6.18205,1841.0,1840.9,0.00043796]
[1743440354559,1.08651,1840.9,1840.8,1.4429]
[1743440355065,2.49531,1840.9,1840.8,1.4429]
[1743440355260,3.20951,1840.9,1840.8,1.4429]
[1743440357366,6.41731,1840.9,1840.8,1.4429]
[1743440362060,5.92384,1841.1,1840.8,1.4429]
[1743440362269,1.08651,1840.9,1840.8,1.4429]
[1743440362662,1.08651,1840.9,1840.8,2.52947]
[1743440362867,1.08651,1840.9,1840.8,1.4429]
[1743440365567,1.08646,1841.0,1840.9,1.08651]
[1743440365767,3.2078,1841.1,1840.8,4.1592]
[1743440366067,1.08648,1841.0,1840.9,1.08646]
[1743440366263,1.08648,1841.0,1840.9,2.55096]
[1743440366877,1.08648,1841.0,1840.9,1.4645]
[1743440367575,2.54168,1841.0,1840.9,1.4645]
[1743440368265,2.54168,1841.0,1840.9,2.55101]
[1743440368468,1.08648,1841.0,1840.9,2.55101]
[1743440368673,1.08648,1841.0,1840.9,3.27337489]
[1743440368969,1.0864,1841.1,1841.0,1.08639]
[1743440369273,1.0864,1841.1,1841.0,2.9346]
[1743440369772,1.0864,1841.1,1841.0,4.02105]
[1743440373871,0.00813758,1841.2,1841.0,7.95053056]
[1743440374174,1.09446758,1841.2,1841.1,2.51139]
[1743440375278,0.00813758,1841.2,1841.1,2.51139]
[1743440375576,0.00813758,1841.2,1841.1,3.2327205]
[1743440376272,0.00813758,1841.2,1841.1,3.23247691]
[1743440377172,1.09446758,1841.2,1841.1,6.15339]
[1743440377376,1.09446758,1841.2,1841.1,2.51139]
[1743440377571,1.09446758,1841.2,1841.1,6.15339]
[1743440378383,0.00813758,1841.2,1841.1,6.15339]
[1743440378572,0.00813758,1841.2,1841.1,6.87410527]
[1743440379274,0.00813758,1841.2,1841.1,6.15339]
[1743440379474,0.00813758,1841.2,1841.1,6.87388806]
[1743440380184,1.09446758,1841.2,1841.1,6.15339]
[1743440381072,0.00813758,1841.2,1841.1,6.15339]
[1743440381382,1.09446758,1841.2,1841.1,6.15339]
[1743440382080,0.00813758,1841.2,1841.1,6.15339]
[1743440382478,0.00813758,1841.2,1841.1,8.65339]
[1743440382782,0.00813758,1841.2,1841.1,6.15339]
[1743440383580,0.00813758,1841.2,1841.1,6.87372249]
[1743440384081,0.00813758,1841.2,1841.1,6.87369972]
[1743440384276,0.00813758,1841.2,1841.1,6.15339]
[1743440384785,0.00813758,1841.2,1841.1,6.87363002]
[1743440385892,1.08614,1841.6,1841.5,1.08606]
[1743440386082,2.56544,1841.6,1841.5,1.08606]
[1743440386276,2.56544,1841.6,1841.0,3.2078]
[1743440386482,1.08633,1841.2,1841.1,1.77873]
[1743440386684,1.08639,1841.1,1841.0,6.50799]
[1743440386880,2.56569,1841.1,1841.0,4.30232758]
[1743440387882,5.77349,1841.1,1841.0,0.00813758]
[1743440388086,5.77349,1841.1,1840.4,3.9273]
[1743440388087,1.08667,1840.7,1840.4,3.9273]
[1743440388391,1.4793,1840.6,1840.5,2.58104]
[1743440389179,0.7152,1840.8,1840.7,1.08663]
[1743440389387,3.26637,1840.8,1840.7,1.08663]
[1743440389779,3.26637,1840.8,1840.7,3.26143]
[1743440391481,1.08653,1840.9,1840.8,1.08654]
[1743440391680,2.48683,1840.9,1840.8,1.4724]
[1743440391880,2.48683,1840.9,1840.8,2.55897]
[1743440392085,1.4003,1840.9,1840.8,2.55897]
[1743440392286,1.4003,1840.9,1840.8,5.76677]
[1743440392588,1.08644,1841.1,1841.0,1.08645]
[1743440393281,2.48668,1841.2,1840.8,5.92419]
[1743440393482,1.08642,1841.1,1841.0,1.08639]
[1743440393684,2.48672,1841.1,1841.0,1.08639]
[1743440393881,1.08649,1841.0,1840.9,1.08647]
[1743440394083,2.48679,1841.0,1840.9,1.08647]
[1743440394787,1.4003,1841.0,1840.9,1.08647]
[1743440395086,1.4003,1841.0,1840.8,4.29432]
[1743440395394,1.08651,1840.9,1840.8,3.2078]
[1743440395879,2.55641,1840.9,1840.8,4.29437]
[1743440396186,1.4699,1840.9,1840.8,4.29437]
[1743440396889,2.55641,1840.9,1840.8,1.08657]
[1743440397488,2.55641,1840.9,1840.7,1.82058]
[1743440397489,1.08657,1840.8,1840.7,1.82058]
[1743440397689,1.08663,1840.7,1840.6,4.97893]
[1743440398190,2.46331,1840.8,1840.7,1.08663]
[1743440398388,1.3767,1840.8,1840.7,1.08663]
[1743440398991,2.46327,1840.8,1840.7,1.08663]
[1743440400085,1.08668,1840.6,1840.5,1.7757]
[1743440400289,1.08674,1840.5,1840.4,4.29456]
[1743440400491,1.0868,1840.4,1840.3,1.08681]
[1743440400684,2.5769,1840.4,1840.3,1.08681]
[1743440402086,2.5769,1840.4,1839.9,1.08707]
[1743440402087,1.08708,1840.0,1839.9,1.08707]
[1743440402292,1.0871,1839.9,1839.8,1.08713]
[1743440402590,2.4811,1839.9,1839.8,1.08713]
[1743440403285,1.394,1839.9,1839.7,0.68]
[1743440403481,1.394,1839.8,1839.7,1.76722]
[1743440404284,5.78495,1840.0,1839.9,1.0871]
[1743440404480,4.03484,1840.0,1839.9,1.0871]
[1743440404991,2.9478,1840.0,1839.9,1.0871]
[1743440405193,1.4577,1840.0,1839.9,1.0871]
[1743440405787,0.00813758,1840.1,1840.0,1.08704]
[1743440405987,0.00813758,1840.1,1840.0,4.29484]
[1743440406389,3.641,1840.8,1840.1,2.71746]
[1743440406691,1.08677,1840.5,1840.4,1.08676]
[1743440407285,1.08671,1840.6,1840.5,1.08669]
[1743440407486,2.5444,1840.7,1840.6,1.08668]
[1743440407800,1.46583758,1840.7,1840.6,1.08668]
[1743440407986,2.55246758,1840.7,1840.6,1.08668]
[1743440408182,1.46583758,1840.7,1840.6,1.08668]
[1743440408397,2.55246758,1840.7,1840.6,1.08668]
[1743440409290,1.46583758,1840.7,1840.6,1.08668]
[1743440410496,0.00813758,1840.7,1840.6,1.08668]
[1743440411189,4.29422,1841.1,1841.0,1.08645]
[1743440411397,4.15049,1841.3,1841.1,1.08639]
[1743440411398,1.4591,1841.2,1841.1,1.08639]
[1743440411890,2.54543,1841.2,1841.1,1.08639]
[1743440412498,1.08639,1841.1,1841.0,1.4811]
[1743440412691,1.08645,1841.0,1840.9,5.02686]
[1743440412887,2.54554,1841.1,1841.0,1.08645]
[1743440413094,2.54554,1841.1,1841.0,2.57035]
[1743440414398,1.4591,1841.1,1841.0,2.57035]
[1743440415491,2.54549,1841.1,1841.0,2.57035]
[1743440415995,1.4591,1841.1,1841.0,2.57035]
[1743440416393,1.50903758,1841.3,1841.2,1.08633]
[1743440416594,0.00813758,1841.3,1841.2,1.08633]
[1743440416791,0.00813758,1841.3,1841.2,2.53703]
[1743440419607,1.09440758,1841.3,1841.2,2.53703]
[1743440419803,1.49873758,1841.3,1841.2,2.53703]
[1743440420097,2.58500758,1841.3,1841.2,2.53703]
[1743440420293,1.49873758,1841.3,1841.2,2.53703]
[1743440420694,0.00813758,1841.3,1841.2,2.53703]
[1743440421096,0.7519,1841.7,1841.6,1.08609]
[1743440421296,2.57664,1841.7,1841.6,1.08609]
[1743440421599,3.25934,1841.7,1841.6,1.08609]
[1743440421895,1.08609,1841.6,1841.5,1.0861]
[1743440422095,3.20114,1841.6,1841.5,1.08615]
[1743440422396,3.20109,1841.6,1841.5,1.08615]
[1743440422790,2.115,1841.6,1841.5,1.08615]
[1743440423000,3.20109,1841.6,1841.5,1.08615]
[1743440423397,2.115,1841.6,1841.5,2.53355]
[1743440423602,3.20109,1841.6,1841.5,2.53355]
[1743440423805,2.115,1841.6,1841.5,2.53355]
[1743440424200,3.20109,1841.6,1841.5,2.53355]
[1743440425103,2.115,1841.6,1841.5,2.53355]
[1743440425403,3.20109,1841.6,1841.5,2.53355]
[1743440425796,2.115,1841.6,1841.5,2.53355]
[1743440426297,3.20109,1841.6,1841.5,2.53355]
[1743440426896,2.115,1841.6,1841.5,2.53355]
[1743440427093,3.20109,1841.6,1841.5,2.53355]
[1743440427294,2.115,1841.6,1841.5,2.53355]
[1743440428400,3.20109,1841.6,1841.5,2.53355]
[1743440428601,3.20109,1841.6,1841.5,1.08615]
[1743440428991,1.08615,1841.5,1841.4,1.09429758]
[1743440429196,2.56185,1841.5,1841.4,1.09429758]
[1743440430500,2.56185,1841.5,1841.4,0.00813758]
[1743440431498,6.20085,1841.5,1841.4,0.00813758]
[1743440431901,1.08639,1841.1,1841.0,3.28941]
[1743440432099,1.08639,1841.1,1841.0,1.08641]
[1743440432293,1.08638,1841.2,1841.1,1.08636]
[1743440432497,1.08639,1841.1,1841.0,2.5445]
[1743440432704,1.78718,1841.2,1841.1,1.08639]
[1743440433101,1.08639,1841.1,1841.0,2.55263758]
[1743440433305,1.08639,1841.1,1841.0,0.00813758]
[1743440434602,4.29419,1841.1,1841.0,0.00813758]
[1743440434809,1.08639,1841.1,1841.0,0.00813758]
[1743440435105,4.3398,1841.2,1841.0,0.00813758]
[1743440435310,1.08639,1841.1,1841.0,1.09453758]
[1743440435495,1.08639,1841.1,1841.0,2.48983758]
[1743440437504,0.6874,1841.3,1841.2,1.08633]
[1743440437905,1.77367,1841.3,1841.2,1.08633]
[1743440438307,1.08626,1841.4,1841.3,1.08627]
[1743440438805,1.08626,1841.4,1841.3,1.08624]
[1743440439911,1.08627,1841.3,1841.2,2.55519]
[1743440441915,1.08627,1841.4,1841.3,1.08625]
[1743440442209,1.08627,1841.4,1841.3,2.44795]
[1743440442508,1.08627,1841.4,1841.3,2.0651]
[1743440442808,1.08627,1841.4,1841.3,3.15137]
[1743440443208,8.3141,1841.5,1841.4,1.08621]
[1743440443408,1.4673,1841.5,1841.4,2.55141]
[1743440443608,1.08615,1841.5,1841.4,2.55141]
[1743440443804,1.08615,1841.6,1841.5,1.08613]
[1743440444412,1.08615,1841.5,1841.4,2.55137]
[1743440446110,1.08615,1841.5,1841.4,1.4652]
[1743440446506,1.08615,1841.5,1841.4,2.55141]
[1743440447212,1.08615,1841.5,1841.4,1.4652]
[1743440449013,1.08615,1841.5,1841.4,2.55141]
[1743440449607,1.08615,1841.5,1841.4,1.4652]
[1743440450212,1.08627,1841.3,1841.2,1.08629]
[1743440450812,1.08627,1841.3,1841.2,2.57339]
[1743440454622,1.79137,1841.3,1841.2,1.4871]
[1743440454820,1.08633,1841.2,1841.1,2.9212]
[1743440455021,2.53573,1841.2,1841.1,1.4611]
[1743440455910,2.53573,1841.2,1841.1,2.54749]
[1743440456212,2.53573,1841.2,1841.1,1.4611]
[1743440456613,2.53573,1841.2,1841.1,2.54749]
[1743440459818,2.53573,1841.2,1841.1,1.4611]
[1743440462121,1.08639,1841.1,1841.0,0.00813758]
[1743440462320,6.85499,1841.1,1841.0,0.00813758]
[1743440462521,5.7686,1841.1,1840.7,0.6938]
[1743440462829,1.08663,1840.7,1840.6,2.1347]
[1743440463024,1.08688,1840.3,1840.2,2.45927]
[1743440463525,1.08688,1840.3,1840.2,1.3724]
[1743440463722,1.08692,1840.2,1840.1,3.21593758]
[1743440464928,1.08692,1840.2,1840.1,4.62953758]
[1743440465530,1.08692,1840.2,1840.1,1.42173758]
[1743440465933,2.44962,1840.2,1840.1,1.42173758]
[1743440467635,2.44962,1840.2,1840.1,2.50871758]
[1743440467840,0.00813758,1840.4,1840.3,1.08686]
[1743440468029,1.0866,1840.8,1840.7,1.08661]
[1743440468336,1.08663,1840.7,1840.6,1.08664]
[1743440468543,1.08668,1840.6,1840.5,2.51332]
[1743440468837,1.08668,1840.6,1840.5,1.4266]
[1743440469034,1.08668,1840.6,1840.5,2.51334]
[1743440469230,1.08668,1840.6,1840.5,1.4266]
[1743440469636,1.08668,1840.6,1840.5,2.51334]
[1743440470445,1.08668,1840.6,1840.5,1.4266]
[1743440471042,1.08668,1840.6,1840.5,2.51334]
[1743440471242,1.08668,1840.6,1840.5,3.24654]
[1743440472240,1.08668,1840.6,1840.5,1.4266]
[1743440472448,1.08668,1840.6,1840.1,9.71413758]
[1743440472449,1.08692,1840.2,1840.1,10.80109758]
[1743440472750,1.0869,1840.3,1840.1,0.00813758]
[1743440472942,1.08692,1840.2,1840.1,2.46537758]
[1743440473142,2.57842,1840.2,1840.1,2.46537758]
[1743440473444,2.57842,1840.2,1840.1,1.37843758]
[1743440473639,2.57842,1840.2,1840.1,2.46541758]
[1743440473850,2.57842,1840.2,1840.1,1.37843758]
[1743440474148,2.57842,1840.2,1840.1,2.46541758]
[1743440474344,1.4915,1840.2,1840.1,2.46541758]
[1743440475045,3.2078,1840.4,1840.3,1.08686]
[1743440475654,3.2078,1840.4,1840.3,1.82916]
[1743440475851,4.2946,1840.4,1840.3,1.82916]
[1743440476151,2.48969,1840.5,1840.4,1.0868]
[1743440476347,2.48969,1840.5,1840.4,3.2555]
[1743440477151,2.48969,1840.5,1840.4,2.1687]
[1743440477446,2.48969,1840.5,1840.4,3.2555]
[1743440477651,2.48969,1840.5,1840.4,2.1687]
[1743440478349,1.08692,1840.2,1840.1,1.09506758]
[1743440478546,1.08692,1840.2,1840.1,1.50213758]
[1743440478746,1.08692,1840.2,1840.1,2.58911758]
[1743440479251,2.59352,1840.2,1840.1,2.58911758]
[1743440482255,1.5066,1840.2,1840.1,2.58911758]
[1743440482444,6.63853758,1840.7,1840.3,1.08681]
[1743440482644,6.63853758,1840.7,1840.1,1.50213758]
[1743440482645,3.92193758,1840.7,1840.6,1.08668]
[1743440482850,1.09476758,1840.7,1840.6,1.08668]
[1743440483146,0.00813758,1840.7,1840.6,1.08668]
[1743440483354,0.00813758,1840.7,1840.6,2.46548]
[1743440484053,0.00813758,1840.7,1840.6,1.3788]
[1743440484054,1.09476758,1840.7,1840.6,1.3788]
[1743440484255,2.52346758,1840.7,1840.6,1.3788]
[1743440485550,1.08668,1840.6,1840.5,1.83392]
[1743440485744,2.51538,1840.6,1840.5,1.08672]
[1743440486154,1.08674,1840.5,1840.4,5.67338]
[1743440486360,2.57364,1840.5,1840.4,4.29458]
[1743440486953,2.57364,1840.5,1840.4,1.08678]
[1743440488055,1.08671,1840.6,1840.4,1.08678]
[1743440488260,1.08671,1840.6,1840.5,1.08674]
[1743440488457,1.49503758,1840.7,1840.6,1.08668]
[1743440488759,0.00813758,1840.7,1840.6,4.29448]
[1743440489263,1.09476758,1840.7,1840.6,1.08668]
[1743440489950,1.08674,1840.6,1840.5,1.08669]
[1743440490152,2.51604,1840.6,1840.5,1.08669]
[1743440494161,1.4293,1840.6,1840.5,1.08669]
[1743440494361,2.51598,1840.6,1840.5,1.08669]
[1743440495160,0.00813758,1840.7,1840.6,1.08668]
[1743440495366,0.00813758,1840.7,1840.6,2.57918]
[1743440495564,0.00813758,1840.7,1840.6,6.50823122]
[1743440495761,2.1574,1841.1,1841.0,1.08645]
[1743440496065,1.4465,1841.1,1841.0,1.08645]
[1743440496370,1.08631,1841.3,1841.0,4.29425]
[1743440496562,2.53281,1841.3,1841.2,1.08627]
[1743440497067,1.08633,1841.2,1841.1,2.58697758]
[1743440497262,2.53283,1841.2,1841.1,2.58697758]
[1743440497464,2.53283,1841.2,1841.1,1.50063758]
[1743440497865,2.53283,1841.2,1841.1,2.58702758]
[1743440498262,1.08629,1841.3,1841.2,1.08633]
[1743440498468,2.52179,1841.3,1841.2,1.08633]
[1743440498768,1.08633,1841.2,1841.1,2.58697758]
[1743440499062,2.52183,1841.2,1841.1,2.58697758]
[1743440500172,1.4355,1841.2,1841.1,2.58697758]
[1743440500668,0.00813758,1841.4,1841.3,1.08627]
[1743440501567,1.08629,1841.3,1841.2,1.08628]
[1743440502267,2.48788758,1841.4,1841.3,1.08627]
[1743440503659,1.08627,1841.3,1841.2,2.45419]
[1743440503868,0.00813758,1841.4,1841.3,1.08627]
[1743440504067,1.09434758,1841.4,1841.3,1.08627]
[1743440505063,0.00813758,1841.4,1841.3,1.08627]
[1743440505372,1.09434758,1841.4,1841.3,1.08627]
[1743440505579,2.53584758,1841.4,1841.3,1.08627]
[1743440506174,1.44963758,1841.4,1841.3,1.08627]
[1743440506473,2.53584758,1841.4,1841.3,1.08627]
[1743440506675,2.53584758,1841.4,1841.3,2.58707]
[1743440506876,1.44963758,1841.4,1841.3,2.58707]
[1743440507075,0.00813758,1841.4,1841.3,2.58707]
[1743440508974,1.09434758,1841.4,1841.3,2.58707]
[1743440509178,0.00813758,1841.4,1841.3,2.58707]
[1743440514373,1.38053758,1841.4,1841.3,2.58707]
[1743440515478,2.46674758,1841.4,1841.3,2.58707]
[1743440515681,3.88414758,1841.4,1841.3,1.08627]
[1743440515876,3.88414758,1841.4,1841.1,0.00813758]
[1743440515877,1.08633,1841.2,1841.1,0.00813758]
[1743440516476,4.29413,1841.2,1841.1,0.00813758]
[1743440517374,1.08633,1841.2,1841.1,1.09452758]
[1743440517571,1.3724,1841.3,1841.2,1.08633]
[1743440517884,1.3724,1841.3,1841.2,2.48933]
[1743440518084,1.3724,1841.3,1841.2,3.17573]
[1743440519984,1.08633,1841.2,1841.1,4.30227758]
[1743440520386,2.45873,1841.3,1841.2,1.08633]
[1743440520780,2.4587,1841.3,1841.2,1.08633]
[1743440520976,2.45873,1841.3,1841.2,1.08633]
[1743440521480,1.08633,1841.2,1841.1,0.00813758]
[1743440521681,1.4107,1841.2,1841.1,1.09452758]
[1743440521981,1.08633,1841.2,1841.1,0.00813758]
[1743440522178,4.29413,1841.2,1841.1,0.00813758]
[1743440522379,1.08663,1840.7,1840.6,1.4069]
[1743440523290,2.48313,1840.7,1840.6,1.4069]
[1743440523885,2.48313,1840.7,1840.6,2.49358]
[1743440524082,2.48313,1840.7,1840.6,1.4069]
[1743440524473,2.48313,1840.7,1840.6,2.49358]
[1743440524879,2.48313,1840.7,1840.6,1.4069]
[1743440525282,1.08668,1840.6,1840.5,0.00813758]
[1743440525485,2.48318,1840.6,1840.5,1.09487758]
[1743440525787,2.48318,1840.6,1840.5,0.00813758]
[1743440526188,2.48318,1840.6,1840.5,1.09487758]
[1743440526384,2.48318,1840.6,1840.5,2.56607758]
[1743440526883,1.3965,1840.6,1840.5,2.56607758]
[1743440527181,2.48318,1840.6,1840.5,2.56607758]
[1743440528275,2.48318,1840.6,1840.5,1.47933758]
[1743440528679,1.3965,1840.6,1840.5,2.56607758]
[1743440529380,2.48318,1840.6,1840.5,2.56607758]
[1743440529575,1.3965,1840.6,1840.5,2.56607758]
[1743440529981,1.08663,1840.8,1840.7,1.0866]
[1743440530181,1.4249,1840.8,1840.7,1.0866]
[1743440530382,2.51147,1840.8,1840.7,1.0866]
[1743440530587,1.08663,1840.7,1840.6,1.08663]
[1743440530788,1.08663,1840.7,1840.6,2.48853]
[1743440530789,2.51153,1840.7,1840.6,2.48853]
[1743440531178,1.08668,1840.6,1840.5,7.93966758]
[1743440531385,2.51158,1840.6,1840.5,2.49676758]
[1743440532993,2.51158,1840.6,1840.5,0.00813758]
[1743440533299,1.087,1840.1,1839.9,3.2078]
[1743440533492,1.08713,1839.9,1839.8,1.08712]
[1743440533795,2.0724,1840.0,1839.7,1.5022]
[1743440533993,2.47883,1839.9,1839.8,1.08714]
[1743440534399,2.4788,1839.9,1839.8,1.08714]
[1743440534599,1.3917,1839.9,1839.8,1.08714]
[1743440535092,1.3917,1839.9,1839.7,1.51033758]
[1743440535293,1.08716,1839.8,1839.7,0.00813758]
[1743440535501,2.47882,1839.9,1839.8,1.08716]
[1743440536291,1.08716,1839.8,1839.7,1.09530758]
[1743440536597,2.52636,1839.8,1839.7,1.09530758]
[1743440536797,1.4392,1839.8,1839.7,1.09530758]
[1743440536997,2.52636,1839.8,1839.7,1.09530758]
[1743440538800,0.68883758,1840.0,1839.9,1.0871]
[1743440539001,1.40003758,1840.0,1839.9,1.0871]
[1743440539797,1.40003758,1840.0,1839.9,1.8105]
[1743440540700,2.48707758,1840.0,1839.9,1.8105]
[1743440541794,1.40003758,1840.0,1839.7,3.21593758]
[1743440541993,1.08716,1839.8,1839.7,0.00813758]
[1743440543392,4.29496,1839.8,1839.7,0.00813758]
[1743440543602,5.78926,1839.8,1839.7,7.58e-06]
[1743440543906,8.28926,1839.8,1839.7,7.58e-06]
[1743440544608,5.78926,1839.8,1839.7,7.58e-06]
[1743440546003,8.28926,1839.8,1839.7,7.58e-06]
[1743440551907,5.78926,1839.8,1839.7,7.58e-06]
[1743440552105,6.22046,1839.8,1839.7,1.08722758]
[1743440552312,2.58146,1839.8,1839.7,1.08722758]
[1743440552506,2.58146,1839.8,1839.7,7.58e-06]
[1743440553200,2.58146,1839.8,1839.7,1.45960758]
[1743440553605,2.58146,1839.8,1839.7,7.58e-06]
[1743440554412,5.08146,1839.8,1839.7,7.58e-06]
[1743440554607,8.28926,1839.8,1839.7,7.58e-06]
[1743440555409,8.28926,1839.8,1839.2,1.4596]
[1743440555410,1.08745,1839.3,1839.2,1.4596]
[1743440556012,3.27625,1839.3,1839.2,1.4596]
[1743440556212,6.48405,1839.3,1839.2,1.4596]
[1743440556716,1.08757,1839.1,1839.0,1.0876]
[1743440556918,1.08763,1839.0,1838.9,1.82953]
[1743440557710,6.63059,1839.3,1839.0,1.08759]
[1743440557711,1.0876,1839.1,1839.0,1.08759]
[1743440558214,1.0876,1839.1,1839.0,2.59069]
[1743440558719,1.0876,1839.1,1839.0,1.5031]
[1743440559323,2.57226,1839.2,1839.1,1.08757]
[1743440559521,1.08757,1839.1,1839.0,2.59069]
[1743440562627,3.2078,1839.7,1839.1,2.71893]
[1743440562929,1.08742,1839.4,1839.3,1.08738]
[1743440563127,1.08742,1839.4,1839.3,1.79828]
[1743440563927,5.92593,1839.7,1839.3,6.63727]
[1743440564223,1.08739,1839.5,1839.4,1.08735]
[1743440564624,1.08739,1839.5,1839.3,3.9187]
[1743440564625,1.08732,1839.6,1839.5,1.08728]
[1743440565827,5.70384,1839.7,1839.6,1.08727]
[1743440566230,1.0873,1839.6,1839.5,1.08729]
[1743440567231,1.4088,1839.7,1839.4,1.08739]
[1743440567430,1.0873,1839.6,1839.5,1.08729]
[1743440567618,0.00813758,1840.0,1839.9,1.0871]
[1743440568225,1.09517758,1840.0,1839.9,1.0871]
[1743440569335,0.00813758,1840.0,1839.9,1.0871]
[1743440569634,0.00813758,1840.0,1839.9,4.2949]
[1743440570432,4.72583,1840.5,1839.9,11.86419912]
[1743440570623,1.5056,1840.6,1840.5,1.08674]
[1743440570826,1.08656,1840.9,1840.8,1.08655]
[1743440571021,4.7255,1841.0,1840.9,1.08651]
[1743440571220,3.2078,1841.1,1840.6,6.6532]
[1743440571533,4.29423,1841.1,1841.0,1.08645]
[1743440571728,3.2078,1841.1,1841.0,1.08645]
[1743440571924,1.0864,1841.1,1840.8,3.9071]
[1743440572130,1.08651,1840.9,1840.8,3.9071]
[1743440572432,1.08657,1840.8,1840.7,0.00813758]
[1743440572637,2.57097,1840.8,1840.7,0.00813758]
[1743440573131,5.77877,1840.8,1840.7,0.00813758]
[1743440573334,6.52117,1840.8,1840.7,0.00813758]
[1743440575528,1.08674,1840.5,1840.4,0.6993]
[1743440575933,5.0973,1840.6,1840.4,1.7861]
[1743440576330,1.08674,1840.5,1840.4,0.6993]
[1743440576535,2.54604,1840.5,1840.4,0.6993]
[1743440576735,1.0868,1840.4,1840.3,0.6839]
[1743440576932,2.5461,1840.4,1840.3,1.77076]
[1743440577230,2.5461,1840.4,1840.3,0.6839]
[1743440577437,1.08686,1840.3,1840.0,3.9137]
[1743440577627,2.57686,1840.3,1840.2,1.08692]
[1743440577834,1.49,1840.3,1840.2,1.08692]
[1743440578137,1.49,1840.5,1840.3,1.08686]
[1743440578541,2.57677,1840.5,1840.4,1.0868]
[1743440578832,1.0867,1840.6,1840.5,1.08674]
[1743440579038,6.66667,1840.8,1840.3,2.71716]
[1743440579039,0.7424,1840.8,1840.3,2.71716]
[1743440579228,1.08664,1840.7,1840.6,1.08667]
[1743440579535,1.08658,1840.8,1840.7,1.08663]
[1743440580733,1.08646,1841.0,1840.9,1.08651]
[1743440581139,1.08646,1841.0,1840.6,5.92449]
[1743440581140,1.4597,1841.1,1840.6,5.92449]
[1743440581438,1.08651,1840.9,1840.8,1.08652]
[1743440581640,1.0865,1841.0,1840.8,1.08652]
[1743440581837,1.08641,1841.1,1841.0,1.08645]
[1743440582034,1.08645,1841.0,1840.9,1.79588]
[1743440582338,1.08645,1841.0,1840.9,3.18548]
[1743440582833,1.08645,1841.0,1840.9,2.099]
[1743440583037,1.08668,1840.6,1840.5,5.0053]
[1743440583235,1.08668,1840.6,1840.5,5.7283]
[1743440583740,1.08668,1840.6,1840.5,4.6416]
[1743440584733,1.08668,1840.6,1840.5,6.1318]
[1743440585438,1.08668,1840.6,1840.5,2.924]
[1743440585744,1.08668,1840.6,1840.1,4.29473]
[1743440585745,1.08692,1840.2,1840.1,4.29473]
[1743440586536,2.215,1840.5,1840.1,5.92525]
[1743440586735,3.30178,1840.5,1840.4,1.0868]
[1743440587039,2.58268,1840.5,1840.4,1.0868]
[1743440587241,1.08683,1840.4,1840.3,1.08682]
[1743440587630,1.4959,1840.5,1840.4,1.0868]
[1743440587831,1.08671,1840.6,1840.5,1.08674]
[1743440588038,1.08671,1840.6,1840.5,2.54424]
[1743440588534,2.46881,1840.6,1840.5,2.54424]
[1743440588731,2.46881,1840.6,1840.5,1.4575]
[1743440590336,2.46881,1840.6,1840.5,5.75204]
[1743440590648,2.71645,1840.8,1840.7,1.08655]
[1743440590649,1.08661,1840.8,1840.7,1.08655]
[1743440590940,2.52318,1840.8,1840.7,1.08663]
[1743440591347,1.4366,1840.8,1840.7,1.08663]
[1743440591548,2.52317,1840.8,1840.7,1.08663]
[1743440593146,2.71603,1841.1,1840.8,1.08652]
[1743440593147,2.71605,1841.1,1840.8,1.08652]
[1743440593347,1.08655,1840.9,1840.8,3.24522]
[1743440593745,1.08655,1840.9,1840.8,3.24527]
[1743440594150,1.08655,1840.9,1840.8,2.1587]
[1743440594344,3.637,1840.9,1840.3,9.706]
[1743440594648,1.08686,1840.3,1840.2,4.29465]
[1743440594952,1.08692,1840.2,1840.1,1.08693]
[1743440595743,1.08692,1840.2,1840.1,2.50503]
[1743440596057,1.08704,1840.0,1839.9,1.08706]
[1743440596251,1.4475,1840.1,1840.0,1.08704]
[1743440596449,2.54261758,1840.1,1840.0,1.08704]
[1743440598346,0.00813758,1840.1,1840.0,4.29484]
[1743440598947,7.0891,1840.5,1840.3,1.0868]
[1743440598948,4.3722,1840.5,1840.3,1.0868]
[1743440599152,3.637,1840.5,1840.4,1.4826]
[1743440599351,1.0868,1840.5,1840.4,1.4826]
[1743440599651,1.08704,1840.0,1839.9,0.7308]
[1743440599849,1.08704,1840.0,1839.9,2.1565288]
[1743440600148,1.08704,1840.0,1839.9,1.434]
[1743440600456,0.00813758,1840.1,1839.9,1.42570689]
[1743440600649,0.00813758,1840.1,1840.0,4.29484]
[1743440600849,0.00813758,1840.1,1840.0,1.08704]
[1743440601154,0.00813758,1840.1,1840.0,5.77744]
[1743440601453,0.00813758,1840.1,1840.0,6.49980609]
[1743440601649,0.00813758,1840.1,1840.0,5.77744]
[1743440601954,1.09511758,1840.1,1840.0,5.77744]
[1743440602253,0.00813758,1840.1,1840.0,6.49978864]
[1743440602449,0.00813758,1840.1,1840.0,5.77744]
[1743440602856,1.09511758,1840.1,1840.0,4.6904]
[1743440603050,1.41053758,1840.1,1840.0,5.77744]
[1743440603557,0.00813758,1840.1,1840.0,5.77744]
[1743440604253,1.09511758,1840.1,1840.0,1.4826]
[1743440605255,0.00813758,1840.1,1840.0,2.56964]
[1743440605458,0.00813758,1840.1,1840.0,5.77744]
[1743440605653,0.00813758,1840.1,1840.0,6.49933269]
[1743440605959,0.7226,1840.7,1840.4,2.71695]
[1743440606255,2.53997,1840.7,1840.6,1.08668]
[1743440606650,2.53993,1840.7,1840.6,1.08668]
[1743440607251,1.4533,1840.7,1840.6,1.08668]
[1743440607453,1.83864758,1840.8,1840.7,1.08663]